bitfinex/quotes_SOLUSD_20250726
["timestamp","ask_amount","ask_price","bid_price","bid_amount"]
[1753561718568,42.78468397,185.83,185.82,0.06]
[1753561718770,91.18085586,185.83,185.82,0.06]
[1753561718973,91.90085586,185.83,185.82,0.06]
[1753561720265,97.2821183,185.83,185.82,0.06]
[1753561720472,58.9421183,185.83,185.82,0.06]
[1753561720670,92.94748245,185.83,185.82,0.06]
[1753561721057,93.66748245,185.83,185.82,1e-08]
[1753561721265,97.26715056,185.83,185.82,1e-08]
[1753561723066,96.54715056,185.83,185.82,1e-08]
[1753561723466,92.94748245,185.83,185.82,1e-08]
[1753561725304,35.37496075,185.83,185.81,1e-08]
[1753561725468,35.37496075,185.83,185.82,0.68]
[1753561725469,31.38126244,185.83,185.82,0.68]
[1753561725663,35.37917661,185.83,185.82,0.68]
[1753561726786,38.56701434,185.83,185.82,0.68]
[1753561727794,12.56701434,185.83,185.82,0.68]
[1753561734580,12.56701434,185.83,185.81,0.71000001]
[1753561734790,8.56910017,185.83,185.81,0.71000001]
[1753561735872,3.18783773,185.82,185.81,0.71000001]
[1753561736998,8.56910017,185.83,185.81,0.71000001]
[1753561737492,8.56910017,185.83,185.82,0.71]
[1753561737795,12.56980902,185.83,185.82,0.71]
[1753561737966,12.56980902,185.83,185.81,1e-08]
[1753561738169,8.56910017,185.83,185.81,1e-08]
[1753561738794,8.56910017,185.83,185.81,0.71000001]
[1753561743489,3.18783773,185.82,185.81,0.71000001]
[1753561744089,12.57151434,185.82,185.81,1e-08]
[1753561744315,8.56938976,185.82,185.81,1e-08]
[1753561747108,9.23938976,185.82,185.81,1e-08]
[1753561747412,13.24287493,185.82,185.81,1e-08]
[1753561747616,16.84478285,185.82,185.81,1e-08]
[1753561747778,46.38081774,185.82,185.81,1e-08]
[1753561747979,26.0,185.78,185.77,0.06]
[1753561748188,38.57403363,185.78,185.77,0.06]
[1753561748608,39.24403363,185.78,185.77,0.06]
[1753561748813,43.53907263,185.78,185.77,0.06]
[1753561750212,16.78468397,185.77,185.74,0.06]
[1753561750536,3.18783773,185.75,185.74,0.06]
[1753561751113,3.18783773,185.75,185.66,0.2]
[1753561751114,3.18783773,185.71,185.66,0.2]
[1753561751298,16.78468397,185.74,185.69,0.71]
[1753561751620,5.38531961,185.69,185.66,0.2]
[1753561752108,26.0,185.64,185.49,2.81196674]
[1753561752307,37.72,185.66,185.61,0.71]
[1753561752619,50.22640711,185.64,185.49,90.0]
[1753561752792,69.54421637,185.64,185.57,0.71]
[1753561752987,86.32890034,185.64,185.57,0.71]
[1753561753222,86.32890034,185.64,185.49,90.0]
[1753561753223,86.32890034,185.64,185.54,0.71]
[1753561753224,16.78468397,185.6,185.54,0.71]
[1753561753398,16.78468397,185.6,185.5,6.3638]
[1753561753399,4.99421637,185.55,185.53,0.71]
[1753561753711,38.08,185.59,185.52,0.71]
[1753561753712,4.99421637,185.56,185.52,0.71]
[1753561753887,4.99421637,185.57,185.52,0.71]
[1753561754406,30.99421637,185.59,185.52,5.70421637]
[1753561754612,30.99421637,185.59,185.53,0.71]
[1753561755306,4.99421637,185.58,185.53,0.71]
[1753561755701,4.99421637,185.59,185.53,5.70421637]
[1753561755891,4.99421637,185.59,185.54,0.71]
[1753561756098,10.38223847,185.6,185.55,0.71]
[1753561756312,4.99421637,185.59,185.56,0.71]
[1753561756892,10.38223847,185.6,185.56,0.71]
[1753561757385,4.99421637,185.6,185.56,0.71]
[1753561757586,4.99421637,185.6,185.57,0.71]
[1753561757997,5.38767422,185.61,185.57,0.71]
[1753561757998,64.22,185.63,185.58,0.71]
[1753561758218,64.22,185.63,185.57,4.99421637]
[1753561758387,70.27706076,185.63,185.59,0.71]
[1753561758783,64.89,185.63,185.59,0.71]
[1753561759420,0.67,185.63,185.59,0.71]
[1753561759602,10.38080583,185.65,185.58,4.99421637]
[1753561759603,11.05080583,185.65,185.58,4.99421637]
[1753561759804,11.05080583,185.65,185.59,0.71]
[1753561760520,4.99421637,185.63,185.59,0.71]
[1753561761201,4.99421637,185.63,185.58,5.38850966]
[1753561761405,4.99421637,185.64,185.6,0.71]
[1753561761716,4.99421637,185.64,185.57,6.5279]
[1753561761717,26.0,185.66,185.61,5.70421637]
[1753561761913,26.0,185.66,185.62,0.71]
[1753561762123,26.67,185.66,185.62,0.71]
[1753561762918,26.67,185.66,185.61,4.99421637]
[1753561763101,26.67,185.66,185.61,5.70421637]
[1753561764125,26.67,185.66,185.62,0.71]
[1753561764330,26.67,185.66,185.61,4.99421637]
[1753561764533,0.66,185.65,185.61,5.66421637]
[1753561764905,0.66,185.64,185.61,4.99421637]
[1753561766201,26.0,185.66,185.61,4.99421637]
[1753561766516,26.0,185.66,185.61,5.66421637]
[1753561766722,0.66,185.65,185.61,5.66421637]
[1753561766900,0.66,185.67,185.62,5.66421637]
[1753561767096,5.65421637,185.69,185.63,0.67]
[1753561767526,11.03968009,185.69,185.63,0.67]
[1753561767712,4.99421637,185.68,185.63,0.67]
[1753561768026,5.65421637,185.68,185.63,0.67]
[1753561768521,0.03,185.64,185.63,0.67]
[1753561772431,0.03,185.64,185.63,6.05706028]
[1753561773840,0.03,185.64,185.61,5.66421637]
[1753561774014,0.03,185.64,185.61,4.99421637]
[1753561774332,0.03,185.64,185.62,0.67]
[1753561777307,0.03,185.64,185.63,0.67]
[1753561777656,0.03,185.64,185.58,26.34432314]
[1753561777657,26.0,185.61,185.58,0.06]
[1753561777929,0.03,185.64,185.58,0.73]
[1753561777930,4.99421637,185.62,185.58,0.73]
[1753561778129,0.03,185.64,185.59,5.66421637]
[1753561778335,0.03,185.64,185.6,0.67]
[1753561778727,0.03,185.64,185.59,43.61421637]
[1753561778916,0.03,185.64,185.58,0.06]
[1753561778917,4.99421637,185.63,185.58,0.06]
[1753561779113,4.99421637,185.63,185.59,0.67]
[1753561779310,0.03,185.64,185.6,0.67]
[1753561779642,5.41677009,185.64,185.6,0.67]
[1753561780137,10.41098646,185.64,185.6,0.67]
[1753561780433,5.41677009,185.64,185.61,0.67]
[1753561780616,5.41677009,185.64,185.6,4.99421637]
[1753561781123,5.41677009,185.64,185.61,0.67]
[1753561783730,5.41677009,185.64,185.58,5.05421637]
[1753561783731,4.99421637,185.63,185.58,0.73]
[1753561784111,4.99421637,185.63,185.59,0.67]
[1753561784846,5.3873505,185.62,185.59,0.67]
[1753561787227,5.3873505,185.62,185.6,0.67]
[1753561790340,5.3873505,185.62,185.6,0.73]
[1753561790713,5.4173505,185.62,185.6,0.73]
[1753561792117,9.36421734,185.61,185.6,0.73]
[1753561792333,5.38764075,185.61,185.6,0.73]
[1753561793440,5.4173505,185.62,185.6,0.73]
[1753561794143,3.98246973,185.61,185.6,0.73]
[1753561795244,9.37011048,185.61,185.6,0.73]
[1753561796535,5.38764075,185.61,185.6,0.73]
[1753561796848,0.03,185.62,185.6,0.73]
[1753561797022,4.01713968,185.62,185.6,0.73]
[1753561798846,5.38764075,185.61,185.6,0.73]
[1753561799139,9.37569816,185.61,185.6,0.73]
[1753561799337,5.38764075,185.61,185.6,0.73]
[1753561799737,5.38764075,185.61,185.6,0.06]
[1753561800643,5.38764075,185.61,185.6,0.75]
[1753561800838,0.03,185.62,185.6,0.75]
[1753561814533,0.03,185.62,185.6,5.74421637]
[1753561814951,0.03,185.62,185.6,5.05421637]
[1753561815140,0.03,185.62,185.61,0.69]
[1753561819236,0.03,185.62,185.61,3.88370083]
[1753561820139,0.03,185.62,185.61,9.27134158]
[1753561820346,0.03,185.62,185.61,0.69]
[1753561820563,0.03,185.62,185.61,3.88370083]
[1753561821768,0.03,185.62,185.61,38.24]
[1753561822338,0.03,185.62,185.61,38.93]
[1753561823036,0.03,185.62,185.61,38.24]
[1753561823256,3.22370083,185.62,185.6,0.06]
[1753561823463,3.22370083,185.62,185.6,38.28]
[1753561825181,5.38764075,185.61,185.6,38.28]
[1753561825739,5.38764075,185.61,185.6,38.97]
[1753561826836,5.02262635,185.62,185.6,38.97]
[1753561827937,5.38764075,185.61,185.6,0.75]
[1753561833570,5.41742771,185.62,185.6,0.75]
[1753561833954,5.41742771,185.62,185.6,0.06]
[1753561834154,0.03,185.62,185.61,0.69]
[1753561835471,0.03,185.62,185.6,0.75]
[1753561838178,0.03,185.62,185.61,0.69]
[1753561842559,0.03,185.62,185.6,0.06]
[1753561842560,5.02262635,185.62,185.6,0.06]
[1753561842764,5.02262635,185.62,185.6,0.75]
[1753561843774,10.3802671,185.61,185.6,0.06]
[1753561844077,14.37267683,185.61,185.6,0.06]
[1753561848288,10.3802671,185.61,185.6,0.06]
[1753561848882,8.5839906,185.61,185.6,0.06]
[1753561849869,12.57281521,185.61,185.6,0.06]
[1753561851198,12.57281521,185.61,185.58,0.06]
[1753561851497,26.0,185.59,185.58,0.06]
[1753561851702,5.38764075,185.61,185.58,0.06]
[1753561852182,5.41737406,185.62,185.59,0.69]
[1753561852366,0.03,185.62,185.61,3.19634985]
[1753561852572,0.03,185.62,185.61,4.17067299]
[1753561852785,0.03,185.65,185.62,0.28432314]
[1753561852967,0.03,185.65,185.63,41.25634985]
[1753561853166,0.03,185.65,185.63,41.94634985]
[1753561853368,0.03,185.65,185.63,39.03432314]
[1753561853591,0.03,185.65,185.63,42.23067299]
[1753561853800,0.03,185.65,185.63,59.01535696]
[1753561853963,0.03,185.65,185.64,17.06900711]
[1753561854169,0.03,185.66,185.64,20.95535696]
[1753561854397,0.03,185.66,185.65,17.76900711]
[1753561854901,0.03,185.66,185.65,22.75466791]
[1753561857475,0.03,185.66,185.65,28.14114784]
[1753561864301,0.03,185.66,185.65,28.67979583]
[1753561864875,0.03,185.66,185.65,30.31689583]
[1753561865785,0.03,185.68,185.67,26.0]
[1753561865987,0.03,185.68,185.67,75.23447362]
[1753561866189,0.03,185.68,185.67,75.93447362]
[1753561867104,0.03,185.68,185.67,92.71915759]
[1753561867304,0.03,185.7,185.68,17.06900711]
[1753561867477,0.03,185.7,185.69,27.04032871]
[1753561867676,0.03,185.7,185.69,28.27886067]
[1753561869404,0.03,185.7,185.69,33.66418028]
[1753561870103,0.03,185.7,185.69,71.68418028]
[1753561871584,0.03,185.7,185.69,161.68418028]
[1753561871782,0.03,185.7,185.69,161.14564832]
[1753561877882,0.03,185.7,185.69,177.30564832]
[1753561878141,0.03,185.7,185.69,161.14564832]
[1753561878411,0.09,185.79,185.71,16.78468397]
[1753561878588,0.09,185.79,185.71,150.53314187]
[1753561878909,0.09,185.78,185.71,145.70900711]
[1753561879094,0.09,185.78,185.71,150.69466791]
[1753561879705,0.1,185.81,185.75,42.78468397]
[1753561879905,0.1,185.81,185.8,5.26998394]
[1753561880090,0.1,185.81,185.8,43.20998394]
[1753561880407,0.19,185.81,185.8,43.20998394]
[1753561880589,0.19,185.81,185.8,38.22432314]
[1753561884024,0.1,185.81,185.8,38.22432314]
[1753561886499,0.1,185.81,185.8,43.20998394]
[1753561886915,0.1,185.81,185.8,41.41126274]
[1753561887428,0.1,185.81,185.8,38.22432314]
[1753561890131,8.75878126,185.81,185.73,0.7]
[1753561890437,3.1869396,185.79,185.74,37.88]
[1753561890611,18.93644582,185.81,185.76,3.47126274]
[1753561890612,5.48184166,185.81,185.76,3.47126274]
[1753561890807,5.48184166,185.81,185.77,37.88]
[1753561891004,5.57184166,185.81,185.77,37.88]
[1753561891516,10.55355044,185.81,185.77,37.88]
[1753561892326,10.46355044,185.81,185.76,38.16432314]
[1753561892633,4.98170878,185.79,185.76,37.88]
[1753561892810,0.09,185.79,185.76,37.88]
[1753561893005,4.98170878,185.8,185.77,0.28432314]
[1753561893224,10.55355044,185.81,185.78,37.88]
[1753561893825,5.57184166,185.81,185.78,37.88]
[1753561895117,10.55355044,185.81,185.78,37.88]
[1753561896430,10.46355044,185.81,185.78,37.88]
[1753561896812,10.55355044,185.81,185.78,37.88]
[1753561897341,0.09,185.8,185.78,37.88]
[1753561897516,4.98170878,185.79,185.78,37.88]
[1753561898635,0.09,185.8,185.78,37.88]
[1753561898814,5.07170878,185.8,185.78,37.88]
[1753561899013,5.07170878,185.8,185.79,37.86]
[1753561899448,10.4538401,185.8,185.79,37.86]
[1753561900910,5.48187199,185.81,185.79,37.86]
[1753561901118,10.46358077,185.81,185.79,37.86]
[1753561901326,5.48187199,185.81,185.79,38.56]
[1753561903934,0.1,185.81,185.8,0.7]
[1753561908256,5.48184166,185.81,185.79,37.86]
[1753561908422,5.48184166,185.81,185.79,38.56]
[1753561911047,5.48184166,185.81,185.79,37.86]
[1753561911346,5.48184166,185.81,185.8,0.7]
[1753561912830,0.1,185.81,185.8,0.7]
[1753561913233,0.1,185.81,185.8,38.48]
[1753561914040,0.1,185.81,185.8,38.76432314]
[1753561920462,5.08170878,185.81,185.76,0.72]
[1753561920685,4.98170878,185.79,185.76,0.72]
[1753561921044,4.98170878,185.79,185.77,37.76]
[1753561921928,10.4636158,185.81,185.78,0.72]
[1753561923054,10.36392287,185.8,185.78,0.72]
[1753561923751,10.36392287,185.8,185.77,38.48]
[1753561926059,10.36392287,185.8,185.77,37.76]
[1753561926239,10.36392287,185.8,185.78,0.72]
[1753561927588,0.1,185.81,185.79,0.72]
[1753561927892,0.1,185.81,185.8,37.74]
[1753561928265,0.1,185.81,185.8,38.46]
[1753561932078,0.1,185.81,185.8,38.74432314]
[1753561932261,0.1,185.81,185.8,43.72603192]
[1753561934569,0.1,185.81,185.8,38.74432314]
[1753561939202,0.1,185.81,185.8,37.74]
[1753561939663,0.1,185.81,185.78,5.26603192]
[1753561939859,10.46365416,185.81,185.79,37.74]
[1753561940183,4.98170878,185.8,185.79,37.74]
[1753561941188,10.3638401,185.8,185.79,37.74]
[1753561942298,10.4538401,185.8,185.74,1.00432314]
[1753561942463,4.98170878,185.77,185.75,37.74]
[1753561943066,4.98170878,185.78,185.75,38.46]
[1753561943376,5.38300048,185.77,185.75,38.46]
[1753561944787,5.38300048,185.77,185.76,0.66]
[1753561945083,5.38273715,185.78,185.76,0.66]
[1753561945286,10.36418787,185.79,185.77,37.74]
[1753561945475,10.36418787,185.79,185.77,38.4]
[1753561946060,10.36418787,185.79,185.77,37.74]
[1753561947088,4.98170878,185.78,185.77,37.74]
[1753561947289,10.36441951,185.78,185.77,37.74]
[1753561948185,5.38271073,185.78,185.77,37.74]
[1753561948971,5.38271073,185.78,185.77,38.4]
[1753561956820,5.38242101,185.79,185.77,38.4]
[1753561957607,5.38242101,185.79,185.78,0.66]
[1753561965221,8.57149774,185.79,185.77,38.4]
[1753561970228,8.57149774,185.79,185.78,0.66]
[1753561970410,5.38242101,185.79,185.78,0.66]
[1753561974326,3.18907673,185.79,185.78,0.66]
[1753561976229,8.57149774,185.79,185.78,0.66]
[1753561980237,0.1,185.81,185.78,0.66]
[1753561980839,0.1,185.81,185.78,3.84907673]
[1753561981043,0.1,185.81,185.78,3.18907673]
[1753561981214,0.1,185.81,185.79,0.67]
[1753561981412,0.1,185.81,185.8,37.72]
[1753561981609,0.1,185.81,185.8,38.39]
[1753561982627,8.67091839,185.81,185.78,0.67]
[1753561982835,3.18907673,185.79,185.72,0.06]
[1753561983027,3.99993848,185.8,185.75,38.39]
[1753561983028,3.18907673,185.76,185.75,38.39]
[1753561983839,3.18907673,185.79,185.75,38.39]
[1753561984010,3.18907673,185.79,185.76,0.67]
[1753561984432,8.571637,185.79,185.76,0.67]
[1753561984831,10.36597568,185.79,185.76,0.67]
[1753561986733,13.55460416,185.81,185.76,5.93773855]
[1753561986734,0.1,185.81,185.76,5.93773855]
[1753561986936,4.10231931,185.81,185.77,5.65341541]
[1753561987143,0.1,185.81,185.78,0.67]
[1753561987441,0.1,185.81,185.8,5.26773855]
[1753561987741,0.1,185.81,185.8,5.93773855]
[1753561988614,0.1,185.81,185.8,11.31986987]
[1753561991742,0.1,185.81,185.8,28.10455384]
[1753561991933,0.1,185.81,185.8,5.93773855]
[1753561992818,0.1,185.81,185.8,0.67]
[1753561993134,0.1,185.81,185.8,38.39]
[1753562001655,0.1,185.81,185.8,43.65773855]
[1753562002354,0.1,185.81,185.8,49.03986987]
[1753562002741,0.1,185.81,185.8,44.05645446]
[1753562002938,0.1,185.81,185.8,49.03986987]
[1753562003138,0.1,185.81,185.8,65.82455384]
[1753562003544,0.1,185.81,185.8,66.36276697]
[1753562003750,0.1,185.81,185.8,43.63773855]
[1753562004153,0.1,185.81,185.8,49.01986987]
[1753562007155,0.1,185.81,185.8,65.80455384]
[1753562020965,0.1,185.81,185.8,97.32618238]
[1753562023266,0.1,185.81,185.8,92.34276697]
[1753562023751,0.1,185.81,185.8,182.34276697]
[1753562024086,0.1,185.81,185.8,181.80455384]
[1753562026868,0.1,185.81,185.8,186.78796925]
[1753562029966,0.1,185.83,185.82,43.06900711]
[1753562030172,0.1,185.83,185.82,86.27057772]
[1753562030361,0.1,185.83,185.82,92.31212975]
[1753562030670,0.1,185.85,185.83,17.06900711]
[1753562030878,0.1,185.85,185.84,86.2705198]
[1753562031186,0.1,185.85,185.84,86.9305198]
[1753562033198,0.1,185.85,185.84,92.31149267]
[1753562034179,0.1,185.85,185.84,182.31149267]
[1753562034349,0.1,185.85,185.84,181.77339539]
[1753562050803,0.1,185.85,185.84,179.9741156]
[1753562053491,0.1,185.85,185.84,175.82565684]
[1753562053691,0.1,185.85,185.84,179.00979246]
[1753562053987,0.1,185.85,185.84,179.2941156]
[1753562054194,0.1,185.85,185.84,180.0141156]
[1753562054888,0.1,185.85,185.84,154.0141156]
[1753562056680,1e-08,185.85,185.84,154.0141156]
[1753562056886,1e-08,185.85,185.84,155.80354831]
[1753562058975,0.03,185.87,185.85,17.06900711]
[1753562059177,0.03,185.87,185.86,60.24061482]
[1753562059408,0.03,185.87,185.86,60.96061482]
[1753562059873,0.1,185.89,185.88,43.06900711]
[1753562060075,0.1,185.89,185.88,176.24055693]
[1753562060371,0.1,185.89,185.88,176.42257544]
[1753562061184,0.1,185.89,185.88,181.80239037]
[1753562063300,1e-08,185.89,185.88,186.7759587]
[1753562063506,0.03,185.91,185.89,17.06900711]
[1753562063818,0.03,185.91,185.9,65.19406738]
[1753562064109,0.03,185.91,185.9,65.91406738]
[1753562065001,0.03,185.93,185.92,26.0]
[1753562065199,0.03,185.93,185.92,150.22044118]
[1753562065388,0.03,185.93,185.92,155.72123292]
[1753562071117,0.03,185.93,185.92,155.06123292]
[1753562071817,0.03,185.93,185.92,117.42123292]
[1753562072023,0.03,185.93,185.92,155.06123292]
[1753562076918,0.03,185.93,185.92,155.72123292]
[1753562078812,1e-08,185.94,185.93,17.06900711]
[1753562078996,1e-08,185.94,185.93,23.24041226]
[1753562082037,1e-08,185.94,185.93,28.61878046]
[1753562083111,1e-08,185.94,185.93,66.23878046]
[1753562084406,1e-08,185.94,185.93,156.23878046]
[1753562084709,1e-08,185.94,185.93,155.70094364]
[1753562093431,1e-08,185.94,185.93,171.85094364]
[1753562093635,1e-08,185.94,185.93,155.70094364]
[1753562095926,1e-08,185.94,185.93,155.04094364]
[1753562096128,1e-08,185.94,185.93,155.10094364]
[1753562097329,1e-08,185.94,185.93,117.48094364]
[1753562097535,1e-08,185.94,185.93,155.10094364]
[1753562097717,1e-08,185.94,185.93,155.77094364]
[1753562103111,1e-08,185.94,185.93,117.48094364]
[1753562103311,1e-08,185.94,185.93,155.08094364]
[1753562104336,1e-08,185.98,185.96,43.06900711]
[1753562104522,1e-08,185.98,185.97,86.18029657]
[1753562104709,1e-08,185.98,185.97,176.18029657]
[1753562104916,1e-08,185.98,185.97,176.31257544]
[1753562105314,1e-08,185.99,185.98,17.06900711]
[1753562105630,1e-08,185.99,185.98,17.73900711]
[1753562106132,1e-08,185.99,185.98,30.7792899]
[1753562106521,1e-08,185.99,185.98,35.75285823]
[1753562108221,0.03,186.01,186.0,43.06900711]
[1753562108538,0.03,186.01,186.0,91.15377817]
[1753562108735,0.03,186.01,186.0,91.82377817]
[1753562108939,0.03,186.01,186.0,93.97564617]
[1753562109139,1e-08,186.01,186.0,93.97564617]
[1753562109311,0.03,186.02,186.0,93.97564617]
[1753562109312,0.03,186.03,186.01,17.06900711]
[1753562109519,0.03,186.03,186.02,60.18015204]
[1753562109720,1.597,186.13,186.06,42.78468397]
[1753562109721,0.09,186.12,186.06,42.78468397]
[1753562110015,0.09,186.12,186.11,0.28432314]
[1753562110214,0.09,186.12,186.11,37.88432314]
[1753562111239,1.597,186.13,186.11,65.01559223]
[1753562111735,6.2177,186.14,186.13,0.28432314]
[1753562111736,0.09,186.14,186.13,0.28432314]
[1753562111940,0.09,186.14,186.13,37.88432314]
[1753562115327,4.97356833,186.16,186.13,37.88432314]
[1753562115528,5.06356833,186.16,186.13,37.88432314]
[1753562115922,0.09,186.15,186.13,37.88432314]
[1753562116541,6.66056833,186.17,186.13,37.88432314]
[1753562116729,0.09,186.16,186.13,37.88432314]
[1753562116939,0.09,186.15,186.13,37.88432314]
[1753562117441,0.09,186.14,186.13,37.88432314]
[1753562117735,0.12,186.14,186.13,37.88432314]
[1753562118136,0.03,186.14,186.13,37.88432314]
[1753562120429,5.09356833,186.14,186.1,90.0]
[1753562120626,4.97356833,186.12,186.11,37.86432314]
[1753562120821,0.09,186.12,186.08,90.0]
[1753562121027,0.09,186.11,186.09,37.58]
[1753562121342,0.09,186.11,186.1,0.28432314]
[1753562121536,4.97356833,186.12,186.1,0.28432314]
[1753562121726,4.97356833,186.12,186.11,37.86432314]
[1753562121928,5.06356833,186.12,186.11,37.86432314]
[1753562122134,0.09,186.12,186.11,37.86432314]
[1753562122337,4.97356833,186.13,186.12,0.28432314]
[1753562123040,5.06356833,186.13,186.12,0.28432314]
[1753562123727,4.97356833,186.13,186.12,0.28432314]
[1753562125546,0.03,186.14,186.12,0.28432314]
[1753562125765,0.03,186.14,186.11,42.95311564]
[1753562125766,0.03,186.14,186.13,37.86432314]
[1753562126969,0.03,186.14,186.13,37.84432314]
[1753562130040,5.00356833,186.14,186.13,37.84432314]
[1753562130857,5.00356833,186.14,186.13,37.56]
[1753562131058,5.09356833,186.14,186.13,37.56]
[1753562131549,5.09356833,186.14,186.1,90.0]
[1753562131755,4.97356833,186.11,186.07,17.50468397]
[1753562131945,4.97356833,186.1,186.08,37.56]
[1753562132144,5.46280154,186.13,186.08,38.28]
[1753562132336,4.97356833,186.11,186.09,0.28432314]
[1753562132541,4.97356833,186.11,186.1,37.84432314]
[1753562134352,4.97356833,186.12,186.1,37.84432314]
[1753562135065,4.97356833,186.11,186.1,37.84432314]
[1753562138668,4.97356833,186.12,186.1,37.84432314]
[1753562138834,4.97356833,186.12,186.1,38.56432314]
[1753562140769,4.97356833,186.11,186.1,38.56432314]
[1753562142837,4.97356833,186.12,186.1,38.56432314]
[1753562143165,4.97356833,186.13,186.11,0.72]
[1753562143337,4.97356833,186.13,186.12,38.28]
[1753562144258,4.97356833,186.13,186.12,37.56]
[1753562145263,4.97356833,186.13,186.1,1.00432314]
[1753562145563,4.97356833,186.13,186.12,37.56]
[1753562146348,4.97356833,186.13,186.12,38.28]
[1753562148750,5.00356833,186.14,186.12,38.28]
[1753562148963,5.00356833,186.14,186.13,0.72]
[1753562152591,0.03,186.14,186.13,1.00432314]
[1753562153284,0.03,186.14,186.13,6.37691219]
[1753562153852,0.03,186.14,186.13,1.00432314]
[1753562158054,0.03,186.14,186.13,6.37691219]
[1753562158574,0.03,186.14,186.13,28.12466614]
[1753562158745,0.03,186.18,186.13,6.91417109]
[1753562159071,4.96306998,186.17,186.15,0.28432314]
[1753562159249,4.96306998,186.17,186.16,37.54]
[1753562159448,4.96306998,186.17,186.16,38.24]
[1753562159758,4.96306998,186.17,186.13,90.0]
[1753562159951,4.96306998,186.14,186.13,90.98432314]
[1753562160149,4.96306998,186.15,186.14,0.28432314]
[1753562160650,0.15,186.18,186.14,0.28432314]
[1753562160854,4.96306998,186.16,186.15,38.52432314]
[1753562161385,4.99306998,186.17,186.16,0.28432314]
[1753562161675,4.99306998,186.17,186.16,0.98432314]
[1753562161877,0.03,186.17,186.16,0.98432314]
[1753562168874,0.03,186.17,186.16,0.28432314]
[1753562169189,0.03,186.17,186.16,37.54]
[1753562169190,4.99306998,186.17,186.16,37.54]
[1753562174262,4.99306998,186.17,186.16,38.24]
[1753562174764,3.20583698,186.17,186.16,38.24]
[1753562179088,3.20583698,186.17,186.16,37.54]
[1753562180072,3.20583698,186.17,186.16,38.24]
[1753562184283,0.03,186.17,186.16,38.24]
[1753562185678,0.03,186.17,186.16,38.52432314]
[1753562186070,3.20583698,186.17,186.16,37.82432314]
[1753562186586,3.20583698,186.17,186.16,38.51432314]
[1753562194507,3.20583698,186.17,186.13,0.69]
[1753562194508,8.57735119,186.17,186.13,0.69]
[1753562194709,8.57735119,186.17,186.1,0.06]
[1753562194710,3.17583698,186.14,186.1,0.06]
[1753562194895,3.17583698,186.11,186.1,0.06]
[1753562195203,3.17583698,186.11,186.1,38.55432314]
[1753562195696,3.17583698,186.11,186.1,38.27]
[1753562196298,3.17583698,186.11,186.1,38.55432314]
[1753562197802,3.17583698,186.11,186.1,37.86432314]
[1753562199170,3.17583698,186.11,186.1,38.55432314]
[1753562201776,3.17583698,186.11,186.1,38.27]
[1753562201977,3.17583698,186.11,186.1,37.58]
[1753562207810,3.17583698,186.11,186.1,38.27]
[1753562209903,3.17583698,186.12,186.1,38.27]
[1753562210103,3.17583698,186.12,186.11,0.69]
[1753562212291,3.17583698,186.12,186.1,37.58]
[1753562212615,3.17583698,186.11,186.1,38.27]
[1753562213190,8.54900338,186.11,186.1,37.56]
[1753562222627,8.54900338,186.11,186.1,38.24]
[1753562223320,8.54900338,186.11,186.1,0.74]
[1753562239168,26.03,186.14,186.1,0.74]
[1753562239169,8.5484361,186.13,186.1,0.74]
[1753562240034,3.17583698,186.12,186.1,0.74]
[1753562242268,3.17583698,186.11,186.1,0.74]
[1753562255475,3.20583698,186.14,186.1,0.74]
[1753562255681,3.20583698,186.14,186.11,37.48]
[1753562256052,8.57813974,186.14,186.12,0.67]